fUST/lending_fUST_20250317
["ID","MTS","AMOUNT","RATE_DAILY","PERIOD"]
[356256110,1742143840556,-20841.95103349,8.493e-05,2]
[356256111,1742143840565,-500.0,8.493e-05,2]
[356256112,1742143840575,-500.0,8.493e-05,2]
[356256113,1742143840584,-557.35,8.493e-05,2]
[356256114,1742143840594,-1058.37,8.493e-05,2]
[356256115,1742143840602,-517.85,8.493e-05,2]
[356256116,1742143840612,-500.0,8.493e-05,2]
[356256117,1742143840622,-500.0,8.493e-05,2]
[356256118,1742143840631,-478.9,8.493e-05,2]
[356256119,1742143840642,-500.0,8.493e-05,2]
[356256120,1742143840652,-186.92,8.493e-05,2]
[356256121,1742143840662,-254.86,8.493e-05,2]
[356256122,1742143840672,-152.36,8.493e-05,2]
[356256123,1742143840682,-295.56,8.493e-05,2]
[356256124,1742143840692,-500.0,8.493e-05,2]
[356256125,1742143840701,-500.0,8.493e-05,2]
[356256126,1742143840710,-500.0,8.493e-05,2]
[356256127,1742143840720,-500.0,8.493e-05,2]
[356256128,1742143840729,-500.0,8.493e-05,2]
[356256129,1742143840739,-191.94286441,8.493e-05,2]
[356256130,1742143840749,-169.85198485,8.493e-05,2]
[356256131,1742143840758,-500.0,8.493e-05,2]
[356256132,1742143840767,-500.0,8.493e-05,2]
[356256133,1742143840777,-326.57707764,8.493e-05,2]
[356256134,1742143840786,-500.0,8.493e-05,2]
[356256135,1742143840795,-1469.08,8.493e-05,2]
[356256136,1742143840805,-434.97368168,8.493e-05,2]
[356256137,1742143840814,-1577.64,8.493e-05,2]
[356256138,1742143840823,-500.0,8.493e-05,2]
[356256139,1742143840832,-500.0,8.493e-05,2]
[356256140,1742143840842,-317.66,8.493e-05,2]
[356256141,1742143840851,-1296.33,8.493e-05,2]
[356256142,1742143840861,-3143.01,8.493e-05,2]
[356256143,1742143840870,-500.0,8.493e-05,2]
[356256144,1742143840879,-500.0,8.493e-05,2]
[356256145,1742143840889,-500.0,8.493e-05,2]
[356256146,1742143840898,-500.0,8.493e-05,2]
[356256147,1742143840907,-500.0,8.493e-05,2]
[356256148,1742143840918,-498.51275424,8.493e-05,2]
[356256149,1742143840927,-500.0,8.493e-05,2]
[356256150,1742143840937,-2895.11,8.493e-05,2]
[356256151,1742143840946,-500.0,8.493e-05,2]
[356256152,1742143840967,-500.0,8.493e-05,2]
[356256153,1742143840976,-500.0,8.493e-05,2]
[356256154,1742143840989,-5409.77,8.493e-05,2]
[356256155,1742143840999,-651.64,8.493e-05,2]
[356256156,1742143841009,-500.0,8.493e-05,2]
[356256157,1742143841019,-500.0,8.493e-05,2]
[356256158,1742143841031,-826.88,8.493e-05,2]
[356256159,1742143841042,-561.11,8.493e-05,2]
[356256160,1742143841052,-500.0,8.493e-05,2]
[356256161,1742143841062,-2043.44,8.493e-05,2]
[356256162,1742143841073,-2494.59,8.493e-05,2]
[356256163,1742143841083,-500.0,8.493e-05,2]
[356256164,1742143841095,-4329.05,8.493e-05,2]
[356256165,1742143841105,-500.0,8.493e-05,2]
[356256166,1742143841114,-500.0,8.493e-05,2]
[356256167,1742143841124,-500.0,8.493e-05,2]
[356256168,1742143841133,-741.34,8.493e-05,2]
[356256169,1742143841143,-1003.78,8.493e-05,2]
[356256170,1742143841153,-3977.58389399,8.493e-05,2]
[356256171,1742143842199,-6977.7884853,8.493e-05,2]
[356256172,1742143842215,-1000.0,8.493e-05,2]
[356256218,1742143843282,-4303.85747622,8.493e-05,2]
[356256269,1742143846270,-1241.8847696,8.493e-05,2]
[356256270,1742143846324,-101205.82537489,8.493e-05,2]
[356256271,1742143846334,-1993.96,8.493e-05,2]
[356256272,1742143846344,-3250.73,8.493e-05,2]
[356256273,1742143846353,-1039.28,8.493e-05,2]
[356256274,1742143846363,-500.0,8.493e-05,2]
[356256275,1742143846374,-1051.01,8.493e-05,2]
[356256276,1742143846384,-2452.68,8.493e-05,2]
[356256277,1742143846394,-2665.25,8.493e-05,2]
[356256278,1742143846404,-786.76986516,8.737e-05,2]
[356256279,1742143846414,-190.44545819,8.766e-05,2]
[356256280,1742143846424,-272.33165122,8.767e-05,2]
[356256281,1742143846433,-151.0,8.767e-05,2]
[356256282,1742143846443,-1058.37,8.767e-05,2]
[356256283,1742143846452,-536.21,8.767e-05,2]
[356256284,1742143846462,-161.52,8.767e-05,2]
[356256285,1742143846471,-500.0,8.767e-05,2]
[356256286,1742143846480,-500.0,8.767e-05,2]
[356256287,1742143846490,-251.22,8.767e-05,2]
[356256288,1742143846499,-500.0,8.767e-05,2]
[356256289,1742143846509,-500.0,8.767e-05,2]
[356256290,1742143846518,-190.72626455,8.767e-05,2]
[356256291,1742143846529,-1469.08,8.767e-05,2]
[356256292,1742143846539,-1577.64,8.767e-05,2]
[356256293,1742143846549,-500.0,8.767e-05,2]
[356256294,1742143846558,-500.0,8.767e-05,2]
[356256295,1742143846568,-1296.33,8.767e-05,2]
[356256296,1742143846577,-3143.01,8.767e-05,2]
[356256297,1742143846586,-500.0,8.767e-05,2]
[356256298,1742143846597,-500.0,8.767e-05,2]
[356256299,1742143846607,-500.0,8.767e-05,2]
[356256300,1742143846616,-500.0,8.767e-05,2]
[356256301,1742143846625,-500.0,8.767e-05,2]
[356256302,1742143846634,-500.0,8.767e-05,2]
[356256303,1742143846643,-2895.11,8.767e-05,2]
[356256304,1742143846653,-514.75,8.767e-05,2]
[356256305,1742143846663,-500.0,8.767e-05,2]
[356256306,1742143846672,-500.0,8.767e-05,2]
[356256307,1742143846681,-5409.77,8.767e-05,2]
[356256308,1742143846692,-651.64,8.767e-05,2]
[356256309,1742143846701,-500.0,8.767e-05,2]
[356256310,1742143846711,-826.88,8.767e-05,2]
[356256311,1742143846721,-561.11,8.767e-05,2]
[356256312,1742143846730,-500.0,8.767e-05,2]
[356256313,1742143846740,-2043.44,8.767e-05,2]
[356256314,1742143846749,-2494.59,8.767e-05,2]
[356256315,1742143846759,-4329.05,8.767e-05,2]
[356256316,1742143846769,-500.0,8.767e-05,2]
[356256317,1742143846778,-500.0,8.767e-05,2]
[356256318,1742143846788,-500.0,8.767e-05,2]
[356256319,1742143846797,-741.34,8.767e-05,2]
[356256320,1742143846806,-1003.78,8.767e-05,2]
[356256321,1742143846815,-118706.94,8.767e-05,2]
[356256322,1742143846825,-1993.96,8.767e-05,2]
[356256323,1742143846834,-3250.73,8.767e-05,2]
[356256324,1742143846844,-1039.28,8.767e-05,2]
[356256325,1742143846853,-500.0,8.767e-05,2]
[356256326,1742143846863,-1051.01,8.767e-05,2]
[356256327,1742143846873,-2452.68,8.767e-05,2]
[356256328,1742143846882,-2665.25,8.767e-05,2]
[356256329,1742143846892,-13661.48830454,8.8e-05,2]
[356256330,1742143846902,-786.76986516,8.954e-05,2]
[356256331,1742143846911,-500.0,8.973e-05,2]
[356256332,1742143846920,-500.0,8.973e-05,2]
[356256333,1742143846930,-500.0,8.973e-05,2]
[356256334,1742143846939,-500.98359949,8.973e-05,2]
[356256335,1742143846948,-500.0,8.973e-05,2]
[356256336,1742143846958,-500.0,8.973e-05,2]
[356256337,1742143846967,-500.0,8.973e-05,2]
[356256338,1742143846976,-500.0,8.973e-05,2]
[356256339,1742143846989,-500.0,8.973e-05,2]
[356256340,1742143846998,-500.0,8.973e-05,2]
[356256341,1742143847007,-500.0,8.973e-05,2]
[356256342,1742143847016,-500.0,8.973e-05,2]
[356256343,1742143847026,-500.0,8.973e-05,2]
[356256344,1742143847037,-500.0,8.973e-05,2]
[356256345,1742143847047,-500.0,8.973e-05,2]
[356256346,1742143847056,-500.0,8.973e-05,2]
[356256347,1742143847067,-500.0,8.973e-05,2]
[356256348,1742143847076,-500.0,8.973e-05,2]
[356256349,1742143847086,-500.0,8.973e-05,2]
[356256350,1742143847096,-500.0,8.973e-05,2]
[356256351,1742143847105,-500.0,8.973e-05,2]
[356256352,1742143847114,-500.0,8.973e-05,2]
[356256353,1742143847123,-36326.99211115,9e-05,2]
[356256354,1742143847132,-250.00000008,9e-05,2]
[356256355,1742143847141,-3546.29008226,9e-05,2]
[356256356,1742143847151,-7280.0,9e-05,2]
[356256357,1742143847160,-192122.50269852,9e-05,4]
[356256362,1742144448668,10000.0,7.256e-05,2]
[356256364,1742144524669,24900.0,7.397e-05,2]
[356256367,1742144791207,396.5133959,8.001e-05,2]
[356256368,1742144849126,-300.0,8.117e-05,2]
[356256369,1742144849150,-500.0,8.118e-05,2]
[356256370,1742144849173,-313.1695141,8.118e-05,2]
[356256371,1742144849195,-500.0,8.118e-05,2]
[356256372,1742144849215,-241.79505794,8.118e-05,2]
[356256373,1742144849237,-500.0,8.118e-05,2]
[356256374,1742144849263,-500.0,8.118e-05,2]
[356256375,1742144849289,-500.0,8.118e-05,2]
[356256376,1742144849312,-500.0,8.118e-05,2]
[356256377,1742144849566,-195.03487847,8.118e-05,2]
[356256378,1742144849594,-500.0,8.118e-05,2]
[356256379,1742144849620,-500.0,8.118e-05,2]
[356256380,1742144849642,-500.0,8.118e-05,2]
[356256381,1742144849664,-500.0,8.118e-05,2]
[356256382,1742144849686,-500.0,8.118e-05,2]
[356256383,1742144849708,-500.0,8.118e-05,2]
[356256384,1742144849730,-36722.49367033,8.119e-05,2]
[356256427,1742145036010,-300.0,8.118e-05,2]
[356256429,1742145036020,-24030.9931796,8.119e-05,2]
[356256431,1742145036030,-500.0,8.193e-05,2]
[356256433,1742145036039,-500.0,8.193e-05,2]
[356256435,1742145036049,-500.0,8.193e-05,2]
[356256437,1742145036059,-445.58625164,8.193e-05,2]
[356256439,1742145036069,-581.36148868,8.193e-05,2]
[356256441,1742145036079,-500.0,8.193e-05,2]
[356256443,1742145036088,-500.0,8.193e-05,2]
[356256445,1742145036098,-500.0,8.193e-05,2]
[356256447,1742145036107,-500.0,8.193e-05,2]
[356256449,1742145036118,-500.0,8.193e-05,2]
[356256451,1742145036128,-600.0,8.214e-05,2]
[356256453,1742145036138,-632.78165316,8.218e-05,2]
[356256455,1742145036147,-500.0,8.219e-05,2]
[356256457,1742145036156,-20000.0,8.219e-05,2]
[356256459,1742145036165,-500.0,8.219e-05,2]
[356256461,1742145036175,-500.0,8.219e-05,2]
[356256463,1742145036184,-500.0,8.219e-05,2]
[356256465,1742145036193,-527.11822206,8.219e-05,2]
[356256467,1742145036203,-500.0,8.219e-05,2]
[356256469,1742145036213,-500.0,8.219e-05,2]
[356256471,1742145036222,-500.0,8.219e-05,2]
[356256473,1742145036231,-500.0,8.219e-05,2]
[356256475,1742145036241,-586.91210862,8.219e-05,2]
[356256477,1742145036250,-527.96979986,8.219e-05,2]
[356256480,1742145036260,-500.0,8.219e-05,2]
[356256484,1742145036269,-500.0,8.219e-05,2]
[356256485,1742145036278,-500.0,8.219e-05,2]
[356256486,1742145036288,-451.58825032,8.219e-05,2]
[356256487,1742145036303,-500.0,8.219e-05,2]
[356256488,1742145036312,-500.0,8.219e-05,2]
[356256489,1742145036322,-156.95472032,8.219e-05,2]
[356256490,1742145036332,-500.0,8.219e-05,2]
[356256491,1742145036341,-500.0,8.219e-05,2]
[356256492,1742145036351,-500.0,8.219e-05,2]
[356256493,1742145036360,-500.0,8.219e-05,2]
[356256494,1742145036370,-500.0,8.219e-05,2]
[356256495,1742145036382,-517.8355287,8.219e-05,2]
[356256496,1742145036391,-500.0,8.219e-05,2]
[356256497,1742145036404,-500.0,8.219e-05,2]
[356256498,1742145036414,-500.0,8.219e-05,2]
[356256499,1742145036424,-500.0,8.219e-05,2]
[356256500,1742145036433,-500.0,8.219e-05,2]
[356256501,1742145036442,-500.0,8.219e-05,2]
[356256502,1742145036452,-500.0,8.219e-05,2]
[356256503,1742145036461,-500.0,8.219e-05,2]
[356256504,1742145036471,-500.0,8.219e-05,2]
[356256505,1742145036480,-500.0,8.219e-05,2]
[356256506,1742145036490,-500.0,8.219e-05,2]
[356256507,1742145036499,-500.0,8.219e-05,2]
[356256508,1742145036508,-500.0,8.219e-05,2]
[356256509,1742145036518,-500.0,8.219e-05,2]
[356256510,1742145036527,-500.0,8.219e-05,2]
[356256511,1742145036537,-500.0,8.219e-05,2]
[356256512,1742145036546,-500.0,8.219e-05,2]
[356256513,1742145036555,-500.0,8.219e-05,2]
[356256514,1742145036565,-289.90708089,8.219e-05,2]
[356256515,1742145036574,-500.0,8.219e-05,2]
[356256516,1742145036584,-500.0,8.219e-05,2]
[356256517,1742145036593,-500.0,8.219e-05,2]
[356256518,1742145036603,-500.0,8.219e-05,2]
[356256519,1742145036613,-500.0,8.219e-05,2]
[356256520,1742145036623,-500.0,8.219e-05,2]
[356256521,1742145036634,-500.0,8.219e-05,2]
[356256522,1742145036644,-500.0,8.219e-05,2]
[356256523,1742145036654,-500.0,8.219e-05,2]
[356256524,1742145036664,-500.0,8.219e-05,2]
[356256525,1742145036674,-500.0,8.219e-05,2]
[356256526,1742145036683,-590.63069117,8.219e-05,2]
[356256527,1742145036693,-500.0,8.219e-05,2]
[356256528,1742145036702,-500.0,8.219e-05,2]
[356256529,1742145036712,-500.0,8.219e-05,2]
[356256530,1742145036722,-500.0,8.219e-05,2]
[356256531,1742145036731,-500.0,8.219e-05,2]
[356256532,1742145036740,-500.0,8.219e-05,2]
[356256533,1742145036749,-500.0,8.219e-05,2]
[356256534,1742145036759,-500.0,8.219e-05,2]
[356256535,1742145036768,-500.0,8.219e-05,2]
[356256536,1742145036777,-500.0,8.219e-05,2]
[356256537,1742145036787,-566.32966444,8.219e-05,2]
[356256538,1742145036796,-550.31,8.219e-05,2]
[356256539,1742145036806,-500.0,8.219e-05,2]
[356256540,1742145036815,-500.0,8.219e-05,2]
[356256541,1742145036825,-500.0,8.219e-05,2]
[356256542,1742145036834,-500.0,8.219e-05,2]
[356256543,1742145036843,-500.0,8.219e-05,2]
[356256544,1742145036854,-500.0,8.219e-05,2]
[356256545,1742145036863,-500.0,8.219e-05,2]
[356256546,1742145036873,-500.0,8.219e-05,2]
[356256547,1742145036884,-500.0,8.219e-05,2]
[356256548,1742145036894,-500.0,8.219e-05,2]
[356256549,1742145036904,-500.0,8.219e-05,2]
[356256550,1742145036914,-500.0,8.219e-05,2]
[356256551,1742145036923,-630.19484771,8.219e-05,2]
[356256552,1742145036933,-500.0,8.219e-05,2]
[356256553,1742145036943,-500.0,8.219e-05,2]
[356256554,1742145036953,-500.0,8.219e-05,2]
[356256555,1742145036962,-500.0,8.219e-05,2]
[356256556,1742145036972,-500.0,8.219e-05,2]
[356256557,1742145036981,-500.0,8.219e-05,2]
[356256558,1742145036990,-607.58,8.219e-05,2]
[356256559,1742145037000,-635.91,8.219e-05,2]
[356256560,1742145037011,-584.52,8.219e-05,2]
[356256561,1742145037020,-500.0,8.219e-05,2]
[356256562,1742145037030,-500.0,8.219e-05,2]
[356256563,1742145037040,-500.0,8.219e-05,2]
[356256564,1742145037049,-500.0,8.219e-05,2]
[356256565,1742145037059,-103.30644155,8.219e-05,2]
[356256566,1742145037074,-396.69355845,8.219e-05,2]
[356256567,1742145037083,-500.0,8.219e-05,2]
[356256568,1742145037092,-360.10090661,8.219e-05,2]
[356256569,1742145037105,-139.89909339,8.219e-05,2]
[356256570,1742145037115,-128.75078398,8.219e-05,2]
[356256571,1742145037127,-371.24921602,8.219e-05,2]
[356256572,1742145037137,-500.0,8.219e-05,2]
[356256573,1742145037147,-232.57099647,8.219e-05,2]
[356256595,1742145038271,-267.42900353,8.219e-05,2]
[356256596,1742145038281,-500.0,8.219e-05,2]
[356256597,1742145038294,-500.0,8.219e-05,2]
[356256598,1742145038305,-620.9460584,8.219e-05,2]
[356256599,1742145038316,-500.0,8.219e-05,2]
[356256600,1742145038326,-500.0,8.219e-05,2]
[356256601,1742145038336,-520.37,8.219e-05,2]
[356256602,1742145038346,-500.0,8.219e-05,2]
[356256603,1742145038356,-500.0,8.219e-05,2]
[356256604,1742145038366,-625.26248478,8.219e-05,2]
[356256605,1742145038380,-512.627187,8.219e-05,2]
[356256606,1742145038391,-500.0,8.219e-05,2]
[356256607,1742145038401,-589.79,8.219e-05,2]
[356256608,1742145038411,-500.0,8.219e-05,2]
[356256609,1742145038420,-500.0,8.219e-05,2]
[356256610,1742145038430,-500.0,8.219e-05,2]
[356256611,1742145038440,-500.0,8.219e-05,2]
[356256612,1742145038450,-500.0,8.219e-05,2]
[356256613,1742145038459,-355.85274726,8.219e-05,2]
[356256614,1742145038470,-500.0,8.219e-05,2]
[356256615,1742145038480,-1327.32,8.219e-05,2]
[356256616,1742145038489,-500.0,8.219e-05,2]
[356256617,1742145038499,-3620.8,8.219e-05,2]
[356256618,1742145038509,-500.0,8.219e-05,2]
[356256619,1742145038518,-74.8810647,8.219e-05,2]
[356256620,1742145038530,-425.1189353,8.219e-05,2]
[356256621,1742145038540,-398.4260617,8.219e-05,2]
[356256622,1742145038552,-101.5739383,8.219e-05,2]
[356256623,1742145038562,-500.0,8.219e-05,2]
[356256624,1742145038572,-500.0,8.219e-05,2]
[356256625,1742145038581,-422.2324704,8.219e-05,2]
[356256626,1742145038694,-77.7675296,8.219e-05,2]
[356256627,1742145038705,-500.0,8.219e-05,2]
[356256628,1742145038715,-564.33,8.219e-05,2]
[356256629,1742145038724,-500.0,8.219e-05,2]
[356256630,1742145038734,-500.0,8.219e-05,2]
[356256631,1742145038744,-500.0,8.219e-05,2]
[356256632,1742145038754,-500.0,8.219e-05,2]
[356256633,1742145038764,-500.0,8.219e-05,2]
[356256634,1742145038774,-500.0,8.219e-05,2]
[356256635,1742145038785,-500.0,8.219e-05,2]
[356256636,1742145038796,-500.0,8.219e-05,2]
[356256637,1742145038806,-500.0,8.219e-05,2]
[356256638,1742145038817,-500.0,8.219e-05,2]
[356256639,1742145038828,-500.0,8.219e-05,2]
[356256640,1742145038839,-500.0,8.219e-05,2]
[356256641,1742145038849,-189.35435377,8.219e-05,2]
[356256642,1742145038860,-500.0,8.219e-05,2]
[356256643,1742145038870,-500.0,8.219e-05,2]
[356256644,1742145038883,-500.0,8.219e-05,2]
[356256645,1742145038893,-500.0,8.219e-05,2]
[356256646,1742145038903,-500.0,8.219e-05,2]
[356256647,1742145038913,-500.0,8.219e-05,2]
[356256648,1742145038923,-500.0,8.219e-05,2]
[356256649,1742145038933,-500.0,8.219e-05,2]
[356256650,1742145038944,-500.0,8.219e-05,2]
[356256651,1742145038954,-500.0,8.219e-05,2]
[356256652,1742145038964,-3012.83,8.219e-05,2]
[356256653,1742145038974,-500.0,8.219e-05,2]
[356256654,1742145038984,-500.0,8.219e-05,2]
[356256655,1742145038994,-500.0,8.219e-05,2]
[356256656,1742145039004,-500.0,8.219e-05,2]
[356256657,1742145039014,-500.0,8.219e-05,2]
[356256658,1742145039024,-720.68,8.219e-05,2]
[356256659,1742145039034,-500.0,8.219e-05,2]
[356256660,1742145039044,-500.0,8.219e-05,2]
[356256661,1742145039054,-500.0,8.219e-05,2]
[356256662,1742145039064,-516.13,8.219e-05,2]
[356256663,1742145039074,-712.69,8.219e-05,2]
[356256664,1742145039084,-500.0,8.219e-05,2]
[356256665,1742145039094,-500.0,8.219e-05,2]
[356256666,1742145039103,-500.0,8.219e-05,2]
[356256667,1742145039113,-500.0,8.219e-05,2]
[356256668,1742145039124,-500.0,8.219e-05,2]
[356256669,1742145039136,-500.0,8.219e-05,2]
[356256670,1742145039146,-500.0,8.219e-05,2]
[356256671,1742145039155,-2039.69,8.219e-05,2]
[356256672,1742145039165,-500.0,8.219e-05,2]
[356256673,1742145039175,-2546.7,8.219e-05,2]
[356256674,1742145039184,-500.0,8.219e-05,2]
[356256675,1742145039194,-500.0,8.219e-05,2]
[356256676,1742145039203,-500.0,8.219e-05,2]
[356256677,1742145039212,-500.0,8.219e-05,2]
[356256678,1742145039222,-500.0,8.219e-05,2]
[356256679,1742145039233,-6824.62,8.219e-05,2]
[356256680,1742145039242,-500.0,8.219e-05,2]
[356256681,1742145039252,-398.25469694,8.219e-05,2]
[356256682,1742145039261,-500.0,8.219e-05,2]
[356256683,1742145039272,-500.0,8.219e-05,2]
[356256684,1742145039282,-773.97,8.219e-05,2]
[356256685,1742145039292,-773.97,8.219e-05,2]
[356256686,1742145039306,-773.97,8.219e-05,2]
[356256687,1742145039316,-773.97,8.219e-05,2]
[356256688,1742145039327,-773.97,8.219e-05,2]
[356256689,1742145039337,-773.97,8.219e-05,2]
[356256690,1742145039567,-773.97,8.219e-05,2]
[356256691,1742145039577,-773.97,8.219e-05,2]
[356256692,1742145039588,-500.0,8.219e-05,2]
[356256693,1742145039597,-773.97,8.219e-05,2]
[356256694,1742145039607,-773.97,8.219e-05,2]
[356256695,1742145039617,-773.97,8.219e-05,2]
[356256696,1742145039627,-773.97,8.219e-05,2]
[356256697,1742145039639,-773.97,8.219e-05,2]
[356256698,1742145039648,-773.97,8.219e-05,2]
[356256699,1742145039658,-773.97,8.219e-05,2]
[356256700,1742145039669,-773.97,8.219e-05,2]
[356256701,1742145039679,-500.0,8.219e-05,2]
[356256702,1742145039688,-500.0,8.219e-05,2]
[356256703,1742145039697,-500.0,8.219e-05,2]
[356256704,1742145039707,-160.7008346,8.219e-05,2]
[356256705,1742145039716,-500.0,8.219e-05,2]
[356256706,1742145039725,-886.07,8.219e-05,2]
[356256707,1742145039734,-500.0,8.219e-05,2]
[356256708,1742145039744,-500.0,8.219e-05,2]
[356256709,1742145039753,-1022.66,8.219e-05,2]
[356256710,1742145039763,-500.0,8.219e-05,2]
[356256711,1742145039775,-365.04,8.219e-05,2]
[356256712,1742145039786,-4470.94,8.219e-05,2]
[356256713,1742145039796,-565.61733997,8.219e-05,2]
[356256714,1742145039805,-500.0,8.219e-05,2]
[356256715,1742145039814,-500.0,8.219e-05,2]
[356256716,1742145039824,-105546.12,8.219e-05,2]
[356256717,1742145039834,-500.0,8.219e-05,2]
[356256718,1742145039843,-598.5,8.219e-05,2]
[356256720,1742145039853,-2140.56,8.219e-05,2]
[356256721,1742145039863,-1243.19,8.219e-05,2]
[356256723,1742145039874,-636.9888253,8.219e-05,2]
[356256726,1742145039886,-500.0,8.219e-05,2]
[356256727,1742145039895,-500.0,8.219e-05,2]
[356256729,1742145039905,-500.0,8.219e-05,2]
[356256731,1742145039915,-500.0,8.219e-05,2]
[356256733,1742145039924,-500.0,8.219e-05,2]
[356256735,1742145039934,-525.45,8.219e-05,2]
[356256737,1742145039943,-1259.75,8.219e-05,2]
[356256739,1742145039952,-2673.47,8.219e-05,2]
[356256741,1742145039962,-500.0,8.219e-05,2]
[356256743,1742145039972,-2886.94,8.219e-05,2]
[356256745,1742145039981,-500.0,8.219e-05,2]
[356256747,1742145039990,-500.0,8.219e-05,2]
[356256749,1742145039999,-2608.1,8.219e-05,2]
[356256750,1742145040009,-500.0,8.219e-05,2]
[356256752,1742145040019,-500.0,8.219e-05,2]
[356256754,1742145040029,-500.0,8.219e-05,2]
[356256755,1742145040038,-500.0,8.219e-05,2]
[356256756,1742145040047,-500.0,8.219e-05,2]
[356256757,1742145040056,-500.0,8.219e-05,2]
[356256758,1742145040066,-1713.24,8.219e-05,2]
[356256759,1742145040074,-1244.28,8.219e-05,2]
[356256760,1742145040083,-833.88055864,8.29e-05,2]
[356256761,1742145040093,-160.0,8.29e-05,2]
[356256762,1742145040103,-160.0,8.29e-05,2]
[356256763,1742145040112,-12458.93820146,8.29e-05,2]
[356256764,1742145040121,-417.78412626,8.29e-05,2]
[356256765,1742145040132,-773.97,8.293e-05,2]
[356256766,1742145040141,-260.501,8.452e-05,2]
[356256767,1742145040151,-1914.0,8.452e-05,2]
[356256768,1742145040160,-2270.0,8.452e-05,2]
[356256770,1742145040170,-565.317,8.452e-05,2]
[356256771,1742145040180,-773.97,8.492e-05,2]
[356256772,1742145040189,-773.97,8.492e-05,2]
[356256773,1742145040200,-773.97,8.492e-05,2]
[356256774,1742145040210,-773.97,8.492e-05,2]
[356256775,1742145040219,-773.97,8.492e-05,2]
[356256776,1742145040229,-773.97,8.492e-05,2]
[356256777,1742145040239,-774.15,8.492e-05,2]
[356256778,1742145040249,-500.0,8.493e-05,2]
[356256779,1742145040259,-500.0,8.493e-05,2]
[356256780,1742145040269,-500.0,8.493e-05,2]
[356256781,1742145040279,-500.0,8.493e-05,2]
[356256782,1742145040292,-500.0,8.493e-05,2]
[356256783,1742145040302,-500.0,8.493e-05,2]
[356256784,1742145040312,-602.02,8.493e-05,2]
[356256785,1742145040322,-500.0,8.493e-05,2]
[356256787,1742145040331,-500.0,8.493e-05,2]
[356256789,1742145040342,-500.0,8.493e-05,2]
[356256791,1742145040353,-636.32,8.493e-05,2]
[356256793,1742145040363,-500.0,8.493e-05,2]
[356256795,1742145040377,-500.0,8.493e-05,2]
[356256797,1742145040393,-645.61299592,8.493e-05,2]
[356256799,1742145040403,-592.98,8.493e-05,2]
[356256801,1742145040412,-500.0,8.493e-05,2]
[356256803,1742145040422,-500.0,8.493e-05,2]
[356256805,1742145040432,-500.0,8.493e-05,2]
[356256807,1742145040441,-500.0,8.493e-05,2]
[356256809,1742145040451,-500.0,8.493e-05,2]
[356256811,1742145040461,-617.36,8.493e-05,2]
[356256813,1742145040470,-209.18288147,8.493e-05,2]
[356256815,1742145040480,-500.0,8.493e-05,2]
[356256817,1742145040489,-500.0,8.493e-05,2]
[356256819,1742145040498,-500.0,8.493e-05,2]
[356256821,1742145040508,-500.0,8.493e-05,2]
[356256823,1742145040517,-500.0,8.493e-05,2]
[356256825,1742145040527,-500.0,8.493e-05,2]
[356256827,1742145040536,-500.0,8.493e-05,2]
[356256829,1742145040545,-500.0,8.493e-05,2]
[356256831,1742145040555,-500.0,8.493e-05,2]
[356256833,1742145040565,-500.0,8.493e-05,2]
[356256835,1742145040575,-500.0,8.493e-05,2]
[356256837,1742145040584,-500.0,8.493e-05,2]
[356256839,1742145040593,-500.0,8.493e-05,2]
[356256840,1742145040603,-500.0,8.493e-05,2]
[356256842,1742145040612,-500.0,8.493e-05,2]
[356256844,1742145040623,-539.11,8.493e-05,2]
[356256846,1742145040633,-500.0,8.493e-05,2]
[356256848,1742145040643,-500.0,8.493e-05,2]
[356256850,1742145040653,-500.0,8.493e-05,2]
[356256852,1742145040662,-500.0,8.493e-05,2]
[356256854,1742145040671,-500.0,8.493e-05,2]
[356256856,1742145040680,-500.0,8.493e-05,2]
[356256858,1742145040690,-155.92513716,8.493e-05,2]